bitfinex/quotes_ETHUSD_20220308
["timestamp","ask_amount","ask_price","bid_price","bid_amount"]
[1646768161617,4.60387595,2568.9,2568.6,0.00365858]
[1646768161820,0.12968595,2568.9,2568.6,0.00365858]
[1646768162019,0.1464,2569.3,2568.6,0.00365858]
[1646768162020,0.1472,2569.3,2568.6,0.00365858]
[1646768162319,13.75543,2569.7,2568.6,0.00365858]
[1646768162617,0.97377,2569.5,2568.6,0.00365854]
[1646768163018,12.85377,2569.5,2568.6,0.00365854]
[1646768163423,0.73754188,2568.9,2568.6,0.00365854]
[1646768163819,0.73754188,2568.9,2568.5,0.01506907]
[1646768164019,15.38,2568.8,2568.5,0.01506907]
[1646768164660,15.39233461,2568.8,2568.5,0.01506907]
[1646768164860,15.56559466,2568.8,2568.5,0.01852072]
[1646768165061,15.56559466,2568.8,2568.5,0.00345165]
[1646768165263,0.97417,2568.7,2568.5,0.00345165]
[1646768165664,3.68559466,2568.8,2568.5,0.00345165]
[1646768165865,0.01233461,2568.8,2568.5,0.00345165]
[1646768166072,0.01233461,2568.8,2568.5,0.00345168]
[1646768167269,0.01233461,2568.8,2568.5,0.00660576]
[1646768167469,0.01233461,2568.8,2568.5,0.00315408]
[1646768168539,0.01233461,2568.8,2568.5,0.00633853]
[1646768168744,0.01233461,2568.8,2568.5,0.00318445]
[1646768168945,0.0123395,2568.9,2568.6,0.7472535]
[1646768169147,0.5,2570.1,2568.7,0.8579]
[1646768169341,0.00318208,2570.4,2568.7,15.7379]
[1646768169540,0.00318208,2570.4,2569.2,3.0]
[1646768169741,0.00636416,2570.4,2569.3,15.7379]
[1646768169942,0.00318208,2570.4,2569.3,15.7379]
[1646768170143,0.00318208,2570.4,2570.3,0.70421133]
[1646768170544,0.00318208,2570.4,2569.7,1.95464522]
[1646768170846,0.00494482,2570.4,2569.7,0.30851402]
[1646768171046,0.00176274,2570.4,2569.7,0.30851402]
[1646768171645,0.00176274,2570.4,2569.9,0.83842225]
[1646768171846,0.00176274,2570.4,2569.9,1.13842225]
[1646768172068,0.00339985,2570.4,2569.9,1.53172278]
[1646768172967,0.00339985,2570.4,2570.1,0.3899]
[1646768173367,0.00339992,2570.4,2570.1,0.6899]
[1646768173569,9.992e-05,2570.4,2570.1,13.5428611]
[1646768173771,9.992e-05,2570.4,2570.2,0.468]
[1646768173967,9.992e-05,2570.4,2570.3,12.2699]
[1646768174169,9.992e-05,2570.4,2570.3,12.5699]
[1646768174467,0.19584313,2571.5,2570.3,13.5699]
[1646768174670,0.99694113,2571.5,2570.5,1.21646893]
[1646768174868,0.99694113,2571.5,2570.5,1.79946013]
[1646768175069,0.99694113,2571.5,2570.5,0.82656893]
[1646768175070,4.49694113,2571.5,2570.5,0.82656893]
[1646768175667,4.88684113,2571.5,2570.3,0.3]
[1646768175921,0.97314,2571.2,2570.1,0.83002457]
[1646768176124,3.5,2571.1,2570.1,0.83002457]
[1646768176322,3.5,2571.3,2570.1,0.83002457]
[1646768176719,3.5,2571.3,2570.3,0.71489359]
[1646768176922,0.19584313,2571.5,2570.7,0.92117026]
[1646768177320,0.19584313,2571.5,2570.7,0.91693926]
[1646768178221,0.00365186,2571.2,2570.7,0.91693926]
[1646768179021,0.00365186,2571.2,2570.3,1.3]
[1646768179220,0.00379326,2571.1,2570.3,0.3]
[1646768179423,0.00379326,2571.1,2570.2,3.245787]
[1646768179663,0.00379326,2571.1,2570.2,2.245787]
[1646768179872,0.00379326,2571.1,2570.2,3.245787]
[1646768180062,0.00379326,2571.1,2570.2,2.635687]
[1646768180262,0.00379326,2571.1,2570.2,3.635687]
[1646768180463,0.00379347,2570.8,2570.2,3.635687]
[1646768181067,0.00379347,2570.8,2570.2,1.6899]
[1646768181268,0.00379347,2570.8,2570.3,0.84829162]
[1646768181474,0.00379347,2570.8,2570.2,0.3]
[1646768181670,0.00379347,2570.8,2570.1,1.8359889]
[1646768181671,0.00379357,2570.6,2570.1,1.8359889]
[1646768181867,0.00379357,2570.6,2570.1,0.83219439]
[1646768182870,0.00379357,2570.6,2570.1,0.53553944]
[1646768182871,0.00334446,2570.5,2570.1,0.53553944]
[1646768183070,0.00334446,2570.5,2570.1,0.53174505]
[1646768184124,0.00334443,2570.5,2570.1,0.53174502]
[1646768185721,0.00334443,2570.5,2570.1,0.00334502]
[1646768186328,0.72853814,2570.5,2570.1,0.00334502]
[1646768186525,0.72853814,2570.5,2570.1,0.00338754]
[1646768186526,0.72858065,2570.5,2570.1,0.00338754]
[1646768186728,4.22858065,2570.5,2570.1,0.00338754]
[1646768187368,0.72858065,2570.5,2570.1,0.00338754]
[1646768187571,4.22858065,2570.5,2570.1,0.00338754]
[1646768188671,0.72858065,2570.5,2570.1,0.00338754]
[1646768188975,0.00338694,2570.5,2570.1,0.00338754]
[1646768190174,0.00338694,2570.5,2570.1,0.00677026]
[1646768190175,11.88676906,2570.5,2570.1,0.00677026]
[1646768190374,11.88338212,2570.5,2570.1,0.00338272]
[1646768190574,11.92935501,2570.5,2570.1,0.00338272]
[1646768190820,0.91212201,2570.2,2570.1,0.00338272]
[1646768191025,1.02278501,2570.5,2570.1,0.00338272]
[1646768191226,1.02278501,2570.5,2570.1,0.00676544]
[1646768191227,0.04935501,2570.5,2570.1,0.00676544]
[1646768191426,0.04935501,2570.5,2570.1,0.00338272]
[1646768192029,0.85249533,2570.4,2570.1,0.00338272]
[1646768192226,1.82597533,2570.4,2570.1,0.00338272]
[1646768192427,0.05109725,2570.5,2570.1,0.00338272]
[1646768192627,0.04771513,2570.5,2569.5,1.2734]
[1646768193628,0.05108905,2570.5,2569.9,0.00337478]
[1646768193828,0.04934681,2570.5,2569.9,0.97662478]
[1646768194228,0.04934681,2570.5,2569.9,0.00337478]
[1646768194673,0.03075895,2570.2,2569.9,0.00337478]
[1646768194869,0.03075895,2570.2,2570.1,0.00337466]
[1646768196278,0.03075895,2570.2,2570.0,0.00337469]
[1646768197374,0.03075895,2570.2,2570.0,0.00360553]
[1646768199020,0.69654529,2570.3,2570.0,0.00360553]
[1646768199724,0.69654529,2570.3,2570.0,0.00626034]
[1646768199920,0.69654529,2570.3,2570.0,0.00360553]
[1646768200323,3.5,2570.2,2570.0,0.00360553]
[1646768200530,16.31910814,2570.2,2570.0,0.00360553]
[1646768200821,16.78710814,2570.1,2570.0,0.00251784]
[1646768201025,16.24251667,2570.1,2570.0,1.784e-05]
[1646768201224,0.73027492,2568.9,2568.1,1.15951901]
[1646768201526,0.69585176,2568.9,2568.2,1.59293148]
[1646768202171,0.69585176,2568.9,2568.1,0.00791901]
[1646768202775,4.47401,2569.0,2568.1,0.00791901]
[1646768202776,0.78522737,2568.3,2568.1,0.00791901]
[1646768203873,0.97424,2568.4,2568.1,0.00791901]
[1646768204079,4.1912,2568.9,2568.1,0.00791901]
[1646768204275,3.7232,2568.9,2568.1,0.00791901]
[1646768204473,3.7232,2568.9,2568.1,0.01186964]
[1646768204674,3.5,2569.1,2568.1,0.01186964]
[1646768204876,0.468,2569.2,2568.1,0.01186964]
[1646768205175,0.468,2569.2,2568.1,0.73368284]
[1646768205176,0.74798924,2569.1,2568.1,0.73368284]
[1646768205374,0.74798924,2569.1,2568.2,1.59301437]
[1646768205817,0.74798924,2569.1,2568.5,0.00395029]
[1646768206620,12.62798924,2569.1,2568.5,0.00395029]
[1646768206822,15.68,2569.0,2568.5,0.00395029]
[1646768207022,15.68,2569.0,2568.7,0.00395018]
[1646768207423,16.65413,2569.0,2568.7,0.00395018]
[1646768207621,13.82827,2568.9,2568.7,0.00395018]
[1646768208222,13.82827,2568.9,2568.7,0.00395014]
[1646768208422,15.38,2568.8,2568.7,0.00395014]
[1646768208622,12.85413,2568.8,2568.7,0.00395014]
[1646768208822,16.35413,2568.8,2568.7,0.00395014]
[1646768209022,12.85413,2568.8,2568.7,0.00395014]
[1646768209591,19.82213,2568.8,2568.6,0.00331515]
[1646768209779,11.88,2568.5,2568.2,0.39702147]
[1646768209980,11.88,2568.3,2568.2,0.39702147]
[1646768210581,1.44247,2568.4,2568.2,0.38375889]
[1646768211383,0.468,2568.4,2568.2,0.38375889]
[1646768211583,0.468,2568.4,2568.1,0.00791901]
[1646768211584,0.9176586,2568.4,2568.1,0.00791901]
[1646768211784,0.97413,2568.6,2568.1,0.00791901]
[1646768212083,0.468,2568.8,2568.1,0.00791901]
[1646768212488,0.97411,2568.7,2568.1,0.00791901]
[1646768212687,12.85411,2568.7,2568.1,0.00791901]
[1646768212985,1.71730717,2568.7,2568.3,0.00395044]
[1646768213618,11.88,2568.6,2568.3,0.00395044]
[1646768213817,1.71730717,2568.7,2568.3,0.00395044]
[1646768214218,1.71730717,2568.7,2568.4,0.0039504]
[1646768215417,1.71730717,2568.7,2568.4,0.00395037]
[1646768215819,3.5,2569.0,2568.4,0.00395037]
[1646768216025,3.9197,2569.2,2568.4,0.00395037]
[1646768216221,0.57991978,2569.3,2568.4,0.00395037]
[1646768216422,0.1946,2569.2,2568.4,0.00395037]
[1646768216825,0.87754458,2568.7,2568.5,0.00264041]
[1646768217078,1.85164458,2568.7,2568.5,0.00264041]
[1646768217966,0.87754458,2568.7,2568.3,0.38375889]
[1646768218266,0.1945,2568.9,2568.3,0.38375889]
[1646768218267,1.16853,2568.9,2568.3,0.38375889]
[1646768218466,0.1945,2569.1,2568.4,0.38375889]
[1646768218766,2.52784978,2569.3,2568.4,0.38375889]
[1646768219166,2.52784978,2569.3,2568.3,1.94787]
[1646768219167,0.97394,2569.2,2568.5,0.38375889]
[1646768219367,1.50360757,2569.3,2568.5,0.38375889]
[1646768219666,1.50360757,2569.3,2568.6,0.38375889]
[1646768219869,0.05081474,2568.7,2568.6,0.38375889]
[1646768220668,0.75831265,2568.7,2568.6,0.38375889]
[1646768221328,0.05081474,2568.7,2568.6,0.38375889]
[1646768223627,10.715,2568.6,2568.4,0.00395047]
[1646768223829,14.215,2568.5,2568.4,0.00790094]
[1646768224026,14.683,2568.5,2568.4,0.00395047]
[1646768224226,15.683,2568.5,2568.4,0.00395047]
[1646768224426,16.39716934,2568.5,2568.4,0.00395047]
[1646768224675,19.39716934,2568.5,2568.4,0.00395047]
[1646768225076,5.68216934,2568.5,2568.4,0.00395047]
[1646768225286,5.68216934,2568.5,2568.3,0.00395044]
[1646768225287,1.18216934,2568.5,2568.3,0.00395044]
[1646768225477,0.1945,2568.4,2568.3,0.00395044]
[1646768226480,0.97424,2568.4,2568.2,0.0033153]
[1646768226878,15.38,2568.3,2568.2,0.0033153]
[1646768227279,18.32876,2568.3,2568.2,0.0033153]
[1646768227480,18.32876,2568.3,2568.2,0.00663063]
[1646768227678,18.32876,2568.3,2568.2,0.00331533]
[1646768227879,1.94876,2568.3,2568.2,0.00331533]
[1646768228082,0.97437,2568.4,2568.2,0.00331533]
[1646768228919,0.97437,2568.4,2568.1,0.00331536]
[1646768229521,1.0258221,2568.4,2568.3,0.02733116]
[1646768231129,1.0258221,2568.4,2568.3,0.03163558]
[1646768231729,0.0514521,2568.4,2568.3,0.03163558]
[1646768235082,4.21354,2569.2,2568.3,0.03163558]
[1646768235384,2.27202595,2569.5,2568.5,1.5549]
[1646768235385,0.1945,2569.5,2568.5,1.5549]
[1646768235581,0.00337382,2569.9,2568.8,1.165]
[1646768235582,3.2536,2569.8,2568.8,1.165]
[1646768235829,0.77234935,2569.9,2568.9,1.165]
[1646768236034,0.58122344,2569.9,2569.1,1.165]
[1646768236330,0.57784962,2569.9,2569.1,1.165]
[1646768237130,0.57785134,2569.9,2569.1,1.165]
[1646768237429,0.57785134,2569.9,2569.4,1.165]
[1646768237430,0.00337581,2569.9,2569.4,1.165]
[1646768237631,0.00337581,2569.9,2569.4,1.5549]
[1646768237836,0.00337581,2569.9,2569.8,1.5549]
[1646768238031,0.00337581,2569.9,2569.8,1.8549]
[1646768238231,1.40022612,2571.1,2570.0,0.3899]
[1646768238435,3.43789426,2571.5,2570.9,1.165]
[1646768238436,1.40022612,2571.2,2570.9,1.165]
[1646768238637,1.40022612,2571.3,2570.9,0.71381549]
[1646768238832,1.40022612,2571.4,2570.9,0.71381549]
[1646768239030,8.95516815,2571.6,2570.9,0.71381549]
[1646768239031,10.35539427,2571.6,2570.9,0.71381549]
[1646768239231,10.35539427,2571.6,2571.0,0.71381549]
[1646768239232,9.76022612,2571.6,2571.0,0.71381549]
[1646768239434,8.36,2571.6,2571.0,0.71381549]
[1646768240072,8.36,2571.6,2571.2,0.71381549]
[1646768240476,8.36,2571.6,2571.3,0.71381549]
[1646768240675,0.003664,2571.4,2571.3,0.71381549]
[1646768242082,0.00366397,2571.5,2571.3,0.71381549]
[1646768243080,0.00732791,2571.5,2571.3,0.71381549]
[1646768243327,0.00366394,2571.5,2571.3,0.71381549]
[1646768243731,0.00366394,2571.5,2571.3,1.01381549]
[1646768243933,0.00366394,2571.5,2571.4,1.10371549]
[1646768244132,0.00366394,2571.5,2571.4,1.40371549]
[1646768244331,0.00730637,2571.5,2571.4,1.66611549]
[1646768244530,0.00364243,2571.5,2571.4,1.66611549]
[1646768244733,0.00364243,2571.5,2571.4,2.58338066]
[1646768245333,7.36,2572.3,2571.5,5.8899]
[1646768245536,0.00694448,2572.4,2571.9,0.3899]
[1646768245733,0.00694448,2572.4,2572.3,12.98371549]
[1646768245936,0.00694448,2572.4,2572.3,1.10371549]
[1646768246137,4.448e-05,2572.4,2572.3,2.10371549]
[1646768246336,4.448e-05,2572.4,2572.3,1.87171549]
[1646768246540,7.36,2573.4,2572.5,12.98371549]
[1646768246736,7.36,2573.4,2572.9,1.10371549]
[1646768246938,7.36,2573.4,2573.1,0.71381549]
[1646768247176,0.1943,2573.9,2573.1,1.01381549]
[1646768247375,0.1943,2573.9,2573.1,0.71381549]
[1646768247376,3.6943,2573.9,2573.1,0.71381549]
[1646768247578,3.6943,2573.9,2573.1,1.59688998]
[1646768247774,0.1943,2573.9,2573.1,1.59688998]
[1646768247974,0.1943,2573.9,2573.1,0.71381549]
[1646768248977,0.81210149,2573.6,2573.1,0.71381549]
[1646768249278,0.1942,2573.5,2573.1,0.71381549]
[1646768250276,0.00398935,2573.4,2573.1,0.71381549]
[1646768251126,0.00398935,2573.4,2573.3,0.00272124]
[1646768251526,0.00101202,2573.9,2573.3,0.00272124]
[1646768252126,0.00101202,2573.9,2573.5,0.71381549]
[1646768253529,0.00101202,2573.9,2573.5,0.57755421]
[1646768253727,0.6540527,2573.8,2573.5,0.57755421]
[1646768253926,0.6577107,2573.8,2573.5,0.57755421]
[1646768254128,0.003658,2573.8,2573.5,0.57755421]
[1646768254972,0.00101202,2573.9,2573.5,0.57755421]
[1646768255173,0.00101202,2573.9,2573.5,1.54938421]
[1646768255585,0.77016713,2574.3,2573.7,0.00269533]
[1646768255979,0.12968595,2574.5,2573.7,0.00269533]
[1646768256182,1.10161595,2574.5,2573.7,0.00269533]
[1646768256580,3.5,2574.4,2573.7,0.00269533]
[1646768257183,1.94422,2574.3,2573.7,0.00269533]
[1646768257383,11.88,2574.1,2573.7,0.00269533]
[1646768257584,11.88,2574.1,2573.7,0.00145807]
[1646768257585,0.70453387,2573.8,2573.7,0.00145807]
[1646768257982,4.08266,2574.3,2573.7,0.00145807]
[1646768258183,0.1942,2574.3,2573.7,0.00145807]
[1646768258420,12.0829783,2574.4,2573.7,0.00145807]
[1646768258622,11.88,2574.4,2573.7,0.00145807]
[1646768258823,0.00385693,2574.1,2573.7,0.00145807]
[1646768259019,0.00385693,2574.1,2573.9,0.02203623]
[1646768260022,0.04694413,2574.3,2573.9,0.02203623]
[1646768260824,0.04694413,2574.3,2573.9,0.02463023]
[1646768261026,3.13655574,2574.4,2573.9,0.02463023]
[1646768261232,0.5836,2574.9,2574.1,0.57755421]
[1646768261429,0.00150961,2575.5,2574.5,0.57755421]
[1646768261630,0.00150961,2575.6,2574.7,0.57755421]
[1646768261828,0.00150961,2575.7,2574.9,0.57755421]
[1646768262075,0.015534,2575.9,2575.8,0.57755421]
[1646768262076,0.01704361,2575.9,2575.8,0.57755421]
[1646768262378,0.015534,2575.9,2575.8,4.37755421]
[1646768262574,0.015534,2575.9,2575.8,0.87755421]
[1646768265178,0.015534,2575.9,2575.8,1.24798271]
[1646768265575,0.015534,2575.9,2575.8,1.25045377]
[1646768266023,0.015534,2575.9,2575.8,0.58002527]
[1646768267427,11.895534,2575.9,2575.8,0.58002527]
[1646768267626,0.015534,2575.9,2575.8,0.58002527]
[1646768269328,0.03198192,2575.9,2575.8,0.51214243]
[1646768269578,11.91198192,2575.9,2575.8,0.51214243]
[1646768269774,0.72305648,2576.0,2575.8,0.51214243]
[1646768269973,1.69440648,2576.0,2575.8,0.51214243]
[1646768270177,0.00386087,2576.0,2575.8,0.51214243]
[1646768270374,0.00386087,2576.0,2575.8,0.81214243]
[1646768270576,0.00493028,2576.1,2576.0,0.4851037]
[1646768271382,0.016373,2576.1,2576.0,0.4851037]
[1646768273433,0.016373,2576.1,2575.8,0.02703873]
[1646768273434,3.5,2576.0,2575.8,0.02703873]
[1646768273638,12.2699,2575.9,2574.4,1.9426223]
[1646768273835,0.39140961,2575.9,2574.4,1.9426223]
[1646768274437,1.32055159,2575.8,2574.4,1.9426223]
[1646768274638,13.20055159,2575.8,2574.4,1.9426223]
[1646768275035,1.32055159,2575.8,2574.4,1.9426223]
[1646768275237,1.32055159,2575.8,2574.7,1.3591048]
[1646768275238,0.01590819,2575.8,2574.7,1.3591048]
[1646768275443,0.01590819,2575.8,2574.8,3.5]
[1646768275637,0.03181654,2575.8,2574.8,3.5]
[1646768275837,0.01590835,2575.8,2574.8,3.5]
[1646768276039,0.01590835,2575.8,2574.6,3.968]
[1646768276240,0.01590835,2575.8,2575.1,0.81948652]
[1646768276440,0.01590835,2575.8,2574.6,5.268]
[1646768276441,0.01590835,2575.8,2574.6,1.3]
[1646768276640,0.01590835,2575.8,2574.4,2.41058]
[1646768276940,0.01295233,2575.9,2574.4,2.71058]
[1646768276941,0.0159085,2575.7,2574.4,2.71058]
[1646768277376,0.0159085,2575.7,2574.4,0.80575301]
[1646768277377,12.72508515,2575.3,2574.4,0.80575301]
[1646768277780,11.88,2575.3,2574.4,0.80575301]
[1646768278381,12.2699,2575.5,2574.4,0.80575301]
[1646768279382,12.28320398,2575.5,2574.4,0.80575301]
[1646768279584,0.82314076,2575.3,2574.4,0.80575301]
[1646768279784,0.82314076,2575.3,2575.0,0.02235181]
[1646768279982,11.89330398,2575.5,2575.0,0.02235181]
[1646768280587,0.01330424,2575.4,2575.0,0.02235181]
[1646768281038,11.88,2575.3,2575.0,0.02235181]
[1646768281433,11.88,2575.1,2575.0,0.02235181]
[1646768282130,12.85174,2575.1,2575.0,0.02235181]
[1646768282331,12.76004388,2575.2,2575.0,0.02235181]
[1646768282532,0.88004388,2575.2,2575.0,0.02235181]
[1646768282932,0.97152,2575.6,2575.0,0.02235181]
[1646768282933,1.98518934,2575.6,2575.0,0.02235181]
[1646768283330,0.98518934,2575.6,2575.0,0.02235181]
[1646768283530,11.88,2575.3,2575.0,0.02235181]
[1646768284573,12.348,2575.3,2575.0,0.02235181]
[1646768284776,12.348,2575.3,2575.1,0.02673203]
[1646768285380,11.88,2575.1,2574.6,0.00268503]
[1646768285579,12.348,2575.0,2574.6,0.00268503]
[1646768285782,12.7379,2575.0,2573.9,1.2467]
[1646768285977,14.0379,2575.0,2573.9,1.2467]
[1646768286277,12.98875393,2574.4,2573.1,3.5]
[1646768286480,1.43999,2574.7,2573.1,3.8899]
[1646768286677,6.7809,2574.9,2573.1,3.8899]
[1646768286678,7.2489,2574.9,2573.1,3.8899]
[1646768286976,0.3,2574.0,2573.1,3.8899]
[1646768287377,0.3,2574.0,2573.1,5.16159]
[1646768287579,11.88,2574.8,2573.9,0.87523626]
[1646768287779,11.89362094,2574.8,2573.9,0.87523626]
[1646768288178,11.89362094,2574.8,2573.5,3.5]
[1646768288428,11.89362094,2574.8,2573.4,1.94329]
[1646768288627,11.89362094,2574.8,2573.3,4.1899]
[1646768288628,12.2699,2574.6,2573.3,4.1899]
[1646768288825,12.2699,2574.6,2573.3,0.9899]
[1646768289028,12.2699,2574.6,2573.3,0.6899]
[1646768289230,12.61061465,2574.6,2574.0,0.02390306]
[1646768290431,13.58249465,2574.6,2574.0,0.02390306]
[1646768290832,1.70249465,2574.6,2574.0,0.02390306]
[1646768291035,13.58249465,2574.6,2574.1,0.00302625]
[1646768292075,3.0,2574.5,2574.1,0.00302625]
[1646768292276,3.968,2574.4,2574.1,0.00302625]
[1646768292478,4.14177492,2574.4,2574.1,0.00302625]
[1646768292675,4.968,2574.4,2574.1,0.00302625]
[1646768292980,11.88,2574.1,2574.0,0.02390306]
[1646768293179,15.848,2574.1,2574.0,0.02390306]
[1646768294178,15.848,2574.1,2572.9,0.1976094]
[1646768294381,0.97224,2573.6,2572.9,0.1976094]
[1646768294780,5.48692,2574.1,2572.9,0.19931346]
[1646768294978,5.48692,2574.1,2572.9,0.19590406]
[1646768294979,3.0745,2574.1,2572.9,0.19590406]
[1646768295579,3.0745,2574.1,2574.0,0.00337422]
[1646768296027,5.69331338,2574.3,2574.0,0.00337422]
[1646768296230,3.76694935,2574.6,2574.0,0.00337422]
[1646768296426,0.98725935,2574.6,2574.0,0.00337422]
[1646768296926,11.88,2574.5,2574.0,0.00337422]
[1646768297726,12.85195,2574.3,2574.0,0.00337422]
[1646768298928,0.05090649,2574.1,2574.0,0.02971606]
[1646768300982,0.05090649,2574.1,2574.0,0.02634184]
[1646768305034,0.05090649,2574.1,2573.7,0.83695442]
[1646768305233,0.05090649,2574.1,2573.7,0.02446505]
[1646768305634,0.05090649,2574.1,2574.0,0.00337422]
[1646768306233,1.02293649,2574.1,2574.0,0.00337422]
[1646768306435,0.05090649,2574.1,2574.0,0.00337422]
[1646768309084,15.43090649,2574.1,2574.0,0.00337422]
[1646768309286,16.29799426,2574.1,2574.0,0.00337422]
[1646768309685,16.29799426,2574.1,2574.0,0.00257422]
[1646768309686,16.76599426,2574.1,2574.0,0.00257422]
[1646768309883,16.76599426,2574.1,2574.0,0.02524965]
[1646768310486,0.51890649,2574.1,2574.0,0.02524965]
[1646768310687,0.05090649,2574.1,2574.0,0.02524965]
[1646768319631,15.43090649,2574.1,2574.0,0.02524965]
[1646768319830,11.93090649,2574.1,2574.0,0.02524965]
[1646768320730,15.43090649,2574.1,2574.0,0.02524965]
[1646768320933,11.88,2573.9,2572.9,0.1942]
[1646768321134,11.88,2573.6,2572.9,0.1942]
[1646768321334,15.38,2573.6,2572.9,0.1942]
[1646768321535,15.38,2573.6,2572.9,0.19806918]
[1646768321735,11.88,2573.6,2572.9,0.19806918]
[1646768322378,12.85228,2573.4,2573.0,1.59030675]
[1646768322574,0.468,2573.8,2573.0,1.59030675]
[1646768323375,1.44011,2573.8,2573.0,1.59030675]
[1646768323574,14.29229,2573.8,2573.0,2.40138611]
[1646768323774,11.88,2573.7,2573.1,1.59030675]
[1646768324673,11.88,2573.7,2572.9,0.1980687]
[1646768324674,12.85229,2573.5,2573.2,1.59030675]
[1646768324878,12.85229,2573.5,2572.9,0.19618641]
[1646768325078,12.85229,2573.5,2573.0,1.59027752]
[1646768325480,12.83110671,2573.5,2573.0,1.59027752]
[1646768326132,3.0544124,2573.8,2573.1,0.78535916]
[1646768326329,0.97218,2573.8,2573.1,0.78535916]
[1646768326529,0.97218,2573.8,2573.2,1.5901965]
[1646768327833,0.97218,2573.8,2573.1,0.78535916]
[1646768328232,0.97218,2573.8,2573.2,1.59019148]
[1646768329035,0.04552995,2573.5,2573.2,1.59019148]
[1646768330476,1.01774995,2573.5,2572.9,0.19761739]
[1646768330677,1.01774995,2573.5,2573.0,1.59014018]
[1646768331283,0.04552995,2573.5,2573.1,0.79450704]
[1646768331484,0.04552995,2573.5,2573.2,1.59014018]
[1646768332587,0.04552995,2573.5,2572.9,0.19761726]
[1646768332785,0.04552995,2573.5,2573.0,1.5902719]
[1646768332987,3.54552995,2573.5,2572.9,0.19761726]
[1646768333453,15.89352995,2573.5,2572.9,0.19761022]
[1646768333638,0.72483823,2573.3,2572.9,0.19761022]
[1646768333840,15.38,2573.2,2572.9,0.19761022]
[1646768334043,11.88,2573.0,2572.9,0.19761022]
[1646768334239,12.348,2573.0,2572.9,0.19761022]
[1646768334640,12.348,2573.0,2572.9,0.20102037]
[1646768334840,12.348,2573.0,2572.9,0.19761015]
[1646768335543,1.44064,2573.0,2572.9,0.19761015]
[1646768335744,3.89036,2573.2,2572.9,0.19761015]
[1646768335946,11.92529356,2573.4,2572.9,0.1942]
[1646768336747,0.97233,2573.3,2572.9,0.1942]
[1646768336947,0.97233,2573.3,2572.9,0.19761127]
[1646768337175,1.9451,2573.1,2572.9,0.19761127]
[1646768337573,13.8251,2573.1,2572.9,0.19761127]
[1646768338177,13.8251,2573.1,2572.9,0.20102252]
[1646768338476,13.8251,2573.1,2572.9,0.19761125]
[1646768338679,1.9451,2573.1,2572.9,0.19761125]
[1646768339276,0.1377824,2573.6,2573.0,6.49408564]
[1646768339476,0.20299341,2574.3,2573.2,0.98132372]
[1646768339676,0.59392785,2574.4,2573.3,4.09142372]
[1646768339875,2.8931,2574.6,2573.3,4.09142372]
[1646768339876,0.5263824,2574.7,2573.5,0.59142372]
[1646768340076,0.5263824,2574.7,2573.7,0.59142372]
[1646768340077,0.3886,2574.7,2573.7,0.59142372]
[1646768340284,0.3886,2574.7,2574.5,0.67446695]
[1646768340478,0.3886,2574.7,2574.6,0.59142372]
[1646768340939,0.02727099,2574.8,2574.6,0.59142372]
[1646768340940,0.01363634,2574.8,2574.6,0.59142372]
[1646768341339,0.01363634,2574.8,2574.7,0.53228135]
[1646768341540,3.81708642,2574.8,2574.7,0.53228135]
[1646768341737,15.69708642,2574.8,2574.7,0.53228135]
[1646768342140,15.68345008,2574.8,2574.7,0.53228135]
[1646768342539,15.68345008,2574.8,2573.9,0.47530264]
[1646768342540,11.88,2574.6,2573.9,0.47530264]
[1646768343241,14.88,2574.4,2573.0,2.30479489]
[1646768343443,12.18,2574.0,2573.0,2.30479489]
[1646768343641,12.18,2574.0,2573.2,0.88417269]
[1646768343642,11.88,2573.8,2573.2,0.88417269]
[1646768343842,12.348,2573.8,2573.2,0.88417269]
[1646768344441,13.32037,2573.8,2573.2,0.88417269]
[1646768344679,13.32037,2573.8,2573.3,0.88417269]
[1646768345079,11.88,2573.7,2573.3,0.88417269]
[1646768345280,0.468,2573.6,2573.3,0.88417269]
[1646768345482,0.97237,2573.5,2573.3,0.88417269]
[1646768345680,0.97237,2573.5,2573.4,0.88417269]
[1646768346284,1.94476,2573.5,2573.4,0.88417269]
[1646768346783,1.94476,2573.5,2572.9,0.19760716]
[1646768346983,1.94476,2573.5,2573.1,0.88417269]
[1646768347384,13.82476,2573.5,2573.1,0.88417269]
[1646768347782,1.94476,2573.5,2573.2,0.88417269]
[1646768348829,1.98685598,2573.5,2573.4,0.02343443]
[1646768350233,1.01448598,2573.5,2573.4,0.02343443]
[1646768350636,1.01448598,2573.5,2573.4,2.49749907]
[1646768350637,0.04209598,2573.5,2573.4,2.49749907]
[1646768352091,0.05247048,2573.5,2573.4,2.49749907]
[1646768353085,0.05247048,2573.5,2573.4,0.90760712]
[1646768353685,11.93247048,2573.5,2573.4,0.90760712]
[1646768353884,11.88,2573.3,2572.9,0.20191286]
[1646768354085,12.8627145,2573.3,2572.9,0.19805643]
[1646768354686,13.8350545,2573.3,2572.9,0.19805643]
[1646768354890,11.88,2573.1,2572.9,0.19805643]
[1646768355185,12.348,2573.0,2572.9,0.19785138]
[1646768356239,12.3583745,2573.0,2572.9,0.19785138]
[1646768356437,13.3309245,2573.0,2572.9,0.1942]
[1646768356638,13.2809245,2573.0,2572.9,0.1942]
[1646768358240,11.88,2572.8,2572.4,0.632]
[1646768358446,13.32067,2572.7,2572.5,0.632]
[1646768359139,13.3310445,2572.7,2572.5,0.632]
[1646768359340,14.17910283,2572.7,2572.6,0.632]
[1646768359588,1.4510445,2572.7,2572.6,0.632]
[1646768360579,1.4510445,2572.7,2572.5,0.00374335]
[1646768360986,1.4510445,2572.7,2572.5,0.00748666]
[1646768361186,1.4510445,2572.7,2572.5,0.00374331]
[1646768361383,1.4510445,2572.7,2571.4,1.2048]
[1646768361384,5.8899,2572.6,2571.4,1.2048]
[1646768361608,5.8899,2572.6,2571.5,1.59080756]
[1646768361609,0.3,2572.0,2571.5,1.59080756]
[1646768361785,11.88,2571.8,2571.1,1.94584]
[1646768361983,0.468,2571.7,2571.2,1.59092569]
[1646768362183,0.4783745,2571.7,2571.2,1.59092569]
[1646768362484,0.4783745,2571.7,2571.3,0.97292]
[1646768362682,0.4783745,2571.7,2571.4,1.59092569]
[1646768362883,0.0103745,2571.7,2571.4,1.59092569]
[1646768363083,1.4219635,2572.1,2571.4,1.59092569]
[1646768363327,1.4219635,2572.1,2571.8,0.86292903]
[1646768363531,1.4219635,2572.1,2571.4,0.00336099]
[1646768363532,0.9539635,2572.1,2571.4,0.00336099]
[1646768363728,0.9539635,2572.1,2571.4,1.59414458]
[1646768363928,0.97291,2572.0,2571.4,1.59414458]